[Event "Titled Tuesday Blitz June 13 Late 2023"]
[White "benny_aizenberg"]
[Black "GAO"]
[WhiteElo "2686"]
[BlackElo "2420"]
[Result "1/2-1/2"]
[Round "10"]
[TimeControl "180+2"]
[Date "2023.06.13"]
[WhiteClock "0:00:04"]
[BlackClock "0:00:14"]
[Board "40"]

1. g4 {[%clk 0:03:00]}  d5 {[%clk 0:02:58]} 2. g5 {[%clk 0:03:01]}  Bf5 {[%clk 0:02:57]} 3. h4 {[%clk 0:02:59]}  e6 {[%clk 0:02:57]} 4. d3 {[%clk 0:02:57]}  c5 {[%clk 0:02:54]} 5. Bg2 {[%clk 0:02:55]}  Nc6 {[%clk 0:02:54]} 6. Nd2 {[%clk 0:02:50]}  h6 {[%clk 0:02:52]} 7. e4 {[%clk 0:02:42]}  Bh7 {[%clk 0:02:45]} 8. f4 {[%clk 0:02:33]}  Bd6 {[%clk 0:02:43]} 9. Ne2 {[%clk 0:02:29]}  Nd4 {[%clk 0:02:41]} 10. exd5 {[%clk 0:02:06]}  exd5 {[%clk 0:02:28]} 11. Bxd5 {[%clk 0:01:50]}  Qe7 {[%clk 0:02:14]} 12. Ne4 {[%clk 0:01:29]}  O-O-O {[%clk 0:01:56]} 13. Be3 {[%clk 0:00:54]}  hxg5 {[%clk 0:01:52]} 14. hxg5 {[%clk 0:00:49]}  Bxe4 {[%clk 0:01:39]} 15. Rxh8 {[%clk 0:00:47]}  Bxd5 {[%clk 0:01:33]} 16. Bxd4 {[%clk 0:00:43]}  cxd4 {[%clk 0:01:32]} 17. Qd2 {[%clk 0:00:43]}  Bb4 {[%clk 0:01:30]} 18. c3 {[%clk 0:00:42]}  dxc3 {[%clk 0:01:30]} 19. bxc3 {[%clk 0:00:40]}  Ba3 {[%clk 0:01:26]} 20. Kf2 {[%clk 0:00:30]}  f6 {[%clk 0:01:05]} 21. Qe3 {[%clk 0:00:28]}  fxg5 {[%clk 0:00:48]} 22. Qxe7 {[%clk 0:00:22]}  Bxe7 {[%clk 0:00:47]} 23. f5 {[%clk 0:00:22]}  Nf6 {[%clk 0:00:43]} 24. Rxd8+ {[%clk 0:00:21]}  Kxd8 {[%clk 0:00:43]} 25. Rg1 {[%clk 0:00:20]}  Kc7 {[%clk 0:00:31]} 26. c4 {[%clk 0:00:18]}  Bc6 {[%clk 0:00:30]} 27. Ke3 {[%clk 0:00:18]}  g4 {[%clk 0:00:27]} 28. Nf4 {[%clk 0:00:18]}  Kd7 {[%clk 0:00:21]} 29. d4 {[%clk 0:00:18]}  b5 {[%clk 0:00:19]} 30. cxb5 {[%clk 0:00:13]}  Bxb5 {[%clk 0:00:19]} 31. Rb1 {[%clk 0:00:14]}  a6 {[%clk 0:00:19]} 32. Ne6 {[%clk 0:00:13]}  Bc4 {[%clk 0:00:17]} 33. Rb7+ {[%clk 0:00:12]}  Ke8 {[%clk 0:00:17]} 34. Nxg7+ {[%clk 0:00:12]}  Kf7 {[%clk 0:00:17]} 35. Ne6 {[%clk 0:00:11]}  Bxe6 {[%clk 0:00:17]} 36. fxe6+ {[%clk 0:00:12]}  Kxe6 {[%clk 0:00:18]} 37. Rb6+ {[%clk 0:00:12]}  Kf5 {[%clk 0:00:19]} 38. Rxa6 {[%clk 0:00:12]}  g3 {[%clk 0:00:19]} 39. Kf3 {[%clk 0:00:12]}  Ne4 {[%clk 0:00:17]} 40. Ra5+ {[%clk 0:00:12]}  Kf6 {[%clk 0:00:14]} 41. Re5 {[%clk 0:00:07]}  Ng5+ {[%clk 0:00:12]} 42. Kg2 {[%clk 0:00:05]}  Bd6 {[%clk 0:00:12]} 43. Re3 {[%clk 0:00:06]}  Ne6 {[%clk 0:00:12]} 44. Rf3+ {[%clk 0:00:04]}  Ke7 {[%clk 0:00:12]} 45. d5 {[%clk 0:00:04]}  Nf4+ {[%clk 0:00:12]} 46. Kxg3 {[%clk 0:00:05]}  Nxd5+ {[%clk 0:00:12]} 47. Kf2 {[%clk 0:00:05]}  Kd7 {[%clk 0:00:12]} 48. Ke2 {[%clk 0:00:05]}  Kc6 {[%clk 0:00:13]} 49. Kd3 {[%clk 0:00:06]}  Ne7 {[%clk 0:00:12]} 50. Kd4 {[%clk 0:00:06]}  Nd5 {[%clk 0:00:12]} 51. Rf1 {[%clk 0:00:04]}  Bc5+ {[%clk 0:00:12]} 52. Ke5 {[%clk 0:00:04]}  Bd6+ {[%clk 0:00:12]} 53. Ke4 {[%clk 0:00:05]}  Nc3+ {[%clk 0:00:12]} 54. Kd4 {[%clk 0:00:04]}  Nxa2 {[%clk 0:00:12]} 55. Rf3 {[%clk 0:00:03]}  Nb4 {[%clk 0:00:13]} 56. Kc4 {[%clk 0:00:03]}  Nd5 {[%clk 0:00:13]} 57. Rd3 {[%clk 0:00:03]}  Nb6+ {[%clk 0:00:12]} 58. Kb3 {[%clk 0:00:04]}  Bc5 {[%clk 0:00:13]} 59. Rc3 {[%clk 0:00:04]}  Kb5 {[%clk 0:00:13]} 60. Rxc5+ {[%clk 0:00:04]}  Kxc5 {[%clk 0:00:14]} 1/2-1/2


[Site "https://www.chess.com"]

[Event "Titled Tuesday Blitz June 13 Late 2023"]
[White "Kuznetsov, Felix"]
[Black "D`Arruda, Ricardo D."]
[WhiteFideId "34147990"]
[BlackFideId "100692"]
[WhiteElo "2281"]
[BlackElo "2548"]
[Result "1-0"]
[Round "10"]
[TimeControl "180+2"]
[Date "2023.06.13"]
[WhiteClock "0:01:31"]
[BlackClock "0:00:00"]
[Board "41"]

1. e4 {[%clk 0:03:00]}  c5 {[%clk 0:02:59]} 2. Nf3 {[%clk 0:03:00]}  Nc6 {[%clk 0:02:59]} 3. d4 {[%clk 0:03:00]}  cxd4 {[%clk 0:03:00]} 4. Nxd4 {[%clk 0:03:01]}  e5 {[%clk 0:03:00]} 5. Nb5 {[%clk 0:03:01]}  a6 {[%clk 0:03:00]} 6. Nd6+ {[%clk 0:03:01]}  Bxd6 {[%clk 0:03:01]} 7. Qxd6 {[%clk 0:03:02]}  Qe7 {[%clk 0:03:01]} 8. Qd1 {[%clk 0:02:42]}  Nf6 {[%clk 0:03:00]} 9. Nc3 {[%clk 0:02:40]}  d6 {[%clk 0:03:00]} 10. Be3 {[%clk 0:02:23]}  Be6 {[%clk 0:03:00]} 11. Be2 {[%clk 0:02:22]}  O-O {[%clk 0:02:59]} 12. O-O {[%clk 0:02:22]}  Rac8 {[%clk 0:02:59]} 13. Qd2 {[%clk 0:02:19]}  h6 {[%clk 0:02:55]} 14. Rad1 {[%clk 0:02:14]}  Rfd8 {[%clk 0:02:52]} 15. f4 {[%clk 0:02:10]}  exf4 {[%clk 0:02:48]} 16. Bxf4 {[%clk 0:02:03]}  Ne5 {[%clk 0:02:48]} 17. Qe3 {[%clk 0:02:00]}  b5 {[%clk 0:02:37]} 18. Qg3 {[%clk 0:01:59]}  Rxc3 {[%clk 0:02:03]} 19. Qxc3 {[%clk 0:01:53]}  Nxe4 {[%clk 0:02:03]} 20. Qd4 {[%clk 0:01:51]}  Bc4 {[%clk 0:00:22]} 21. Qxe4 {[%clk 0:01:46]}  d5 {[%clk 0:00:10]} 22. Qxe5 {[%clk 0:01:34]}  Qxe5 {[%clk 0:00:09]} 23. Bxe5 {[%clk 0:01:35]}  Bxe2 {[%clk 0:00:09]} 24. Rfe1 {[%clk 0:01:36]}  Bxd1 {[%clk 0:00:09]} 25. Rxd1 {[%clk 0:01:36]}  f6 {[%clk 0:00:09]} 26. Bc3 {[%clk 0:01:36]}  Kf7 {[%clk 0:00:09]} 27. Kf2 {[%clk 0:01:36]}  Ke6 {[%clk 0:00:10]} 28. Ke3 {[%clk 0:01:35]}  Rc8 {[%clk 0:00:10]} 29. Kd3 {[%clk 0:01:34]}  Rc4 {[%clk 0:00:10]} 30. Re1+ {[%clk 0:01:35]}  Kd7 {[%clk 0:00:10]} 31. b3 {[%clk 0:01:35]}  Rf4 {[%clk 0:00:09]} 32. Re2 {[%clk 0:01:33]}  Rf1 {[%clk 0:00:07]} 33. Bd4 {[%clk 0:01:32]}  Rd1+ {[%clk 0:00:06]} 34. Rd2 {[%clk 0:01:33]}  Rh1 {[%clk 0:00:06]} 35. h3 {[%clk 0:01:33]}  Rf1 {[%clk 0:00:04]} 36. Bc5 {[%clk 0:01:32]}  Kc6 {[%clk 0:00:04]} 37. b4 {[%clk 0:01:31]}  Rf5 {[%clk 0:00:00]} 38. Re2 {[%clk 0:01:31]} 1-0


[Site "https://www.chess.com"]

[Event "Titled Tuesday Blitz June 13 Late 2023"]
[White "Osmak, Yuliia"]
[Black "Arabidze, Meri"]
[WhiteFideId "14101602"]
[BlackFideId "13604040"]
[WhiteElo "2303"]
[BlackElo "2405"]
[Result "0-1"]
[Round "10"]
[TimeControl "180+2"]
[Date "2023.06.13"]
[WhiteClock "0:00:10"]
[BlackClock "0:00:14"]
[Board "45"]

1. b3 {[%clk 0:03:00]}  Nf6 {[%clk 0:02:57]} 2. Bb2 {[%clk 0:03:01]}  g6 {[%clk 0:02:58]} 3. Nf3 {[%clk 0:02:58]}  Bg7 {[%clk 0:02:58]} 4. e3 {[%clk 0:02:59]}  O-O {[%clk 0:02:58]} 5. Be2 {[%clk 0:02:58]}  d6 {[%clk 0:02:58]} 6. O-O {[%clk 0:02:57]}  e5 {[%clk 0:02:58]} 7. d4 {[%clk 0:02:57]}  e4 {[%clk 0:02:58]} 8. Nfd2 {[%clk 0:02:56]}  d5 {[%clk 0:02:58]} 9. c4 {[%clk 0:02:56]}  c6 {[%clk 0:02:58]} 10. Nc3 {[%clk 0:02:56]}  a6 {[%clk 0:02:58]} 11. f3 {[%clk 0:02:48]}  exf3 {[%clk 0:02:51]} 12. Bxf3 {[%clk 0:02:48]}  Qe7 {[%clk 0:02:35]} 13. e4 {[%clk 0:02:45]}  dxe4 {[%clk 0:02:30]} 14. Ndxe4 {[%clk 0:02:44]}  Nxe4 {[%clk 0:02:29]} 15. Nxe4 {[%clk 0:02:43]}  Bf5 {[%clk 0:02:23]} 16. Ng3 {[%clk 0:02:41]}  Be6 {[%clk 0:02:15]} 17. Qd2 {[%clk 0:02:39]}  Qh4 {[%clk 0:02:05]} 18. Rae1 {[%clk 0:02:35]}  Nd7 {[%clk 0:01:56]} 19. d5 {[%clk 0:02:32]}  cxd5 {[%clk 0:01:56]} 20. cxd5 {[%clk 0:02:30]}  Bxb2 {[%clk 0:01:46]} 21. Qxb2 {[%clk 0:02:30]}  Bg4 {[%clk 0:01:44]} 22. Qd4 {[%clk 0:02:09]}  h5 {[%clk 0:01:37]} 23. Re4 {[%clk 0:01:54]}  Qf6 {[%clk 0:01:11]} 24. Bxg4 {[%clk 0:01:49]}  Qxd4+ {[%clk 0:01:10]} 25. Rxd4 {[%clk 0:01:50]}  hxg4 {[%clk 0:01:11]} 26. Rxg4 {[%clk 0:01:49]}  Rac8 {[%clk 0:01:09]} 27. Nf5 {[%clk 0:01:41]}  Rc2 {[%clk 0:01:08]} 28. h4 {[%clk 0:01:22]}  Ne5 {[%clk 0:01:04]} 29. Rg3 {[%clk 0:01:21]}  Kh7 {[%clk 0:00:59]} 30. Nd6 {[%clk 0:01:09]}  b5 {[%clk 0:00:58]} 31. h5 {[%clk 0:01:02]}  gxh5 {[%clk 0:00:48]} 32. Rf5 {[%clk 0:00:42]}  Rc1+ {[%clk 0:00:47]} 33. Kf2 {[%clk 0:00:42]}  Ng4+ {[%clk 0:00:40]} 34. Ke2 {[%clk 0:00:41]}  Kg6 {[%clk 0:00:40]} 35. Rf4 {[%clk 0:00:29]}  f6 {[%clk 0:00:36]} 36. Ne4 {[%clk 0:00:23]}  f5 {[%clk 0:00:30]} 37. Nd2 {[%clk 0:00:21]}  Rd8 {[%clk 0:00:27]} 38. Rd4 {[%clk 0:00:18]}  h4 {[%clk 0:00:26]} 39. Rh3 {[%clk 0:00:14]}  Re8+ {[%clk 0:00:26]} 40. Kf3 {[%clk 0:00:11]}  Rc3+ {[%clk 0:00:17]} 41. Kf4 {[%clk 0:00:11]}  Rxh3 {[%clk 0:00:13]} 42. gxh3 {[%clk 0:00:11]}  Nf2 {[%clk 0:00:14]} 43. Nf3 {[%clk 0:00:10]}  Nxh3# {[%clk 0:00:14]} 0-1


[Site "https://www.chess.com"]

[Event "Titled Tuesday Blitz June 13 Late 2023"]
[White "Schnaider, Ilan"]
[Black "Toniutti, Ezio"]
[WhiteFideId "169013"]
[BlackFideId "113034"]
[WhiteElo "2224"]
[BlackElo "2215"]
[Result "1-0"]
[Round "10"]
[TimeControl "180+2"]
[Date "2023.06.13"]
[WhiteClock "0:00:24"]
[BlackClock "0:00:05"]
[Board "48"]

1. e4 {[%clk 0:02:59]}  e5 {[%clk 0:02:59]} 2. Nf3 {[%clk 0:02:58]}  Nc6 {[%clk 0:03:00]} 3. Bc4 {[%clk 0:02:57]}  Nf6 {[%clk 0:02:59]} 4. d3 {[%clk 0:02:57]}  Be7 {[%clk 0:02:59]} 5. O-O {[%clk 0:02:56]}  O-O {[%clk 0:02:59]} 6. Nc3 {[%clk 0:02:56]}  d6 {[%clk 0:03:00]} 7. a4 {[%clk 0:02:55]}  h6 {[%clk 0:02:50]} 8. a5 {[%clk 0:02:47]}  a6 {[%clk 0:02:50]} 9. h3 {[%clk 0:02:45]}  Nh7 {[%clk 0:02:37]} 10. d4 {[%clk 0:02:37]}  Bf6 {[%clk 0:02:33]} 11. Be3 {[%clk 0:02:33]}  Bd7 {[%clk 0:01:52]} 12. Nd5 {[%clk 0:02:26]}  Re8 {[%clk 0:01:49]} 13. dxe5 {[%clk 0:01:45]}  Nxe5 {[%clk 0:01:41]} 14. Nxe5 {[%clk 0:01:45]}  Bxe5 {[%clk 0:01:30]} 15. f4 {[%clk 0:01:06]}  Bf6 {[%clk 0:01:16]} 16. e5 {[%clk 0:00:50]}  dxe5 {[%clk 0:00:37]} 17. Nxf6+ {[%clk 0:00:39]}  Nxf6 {[%clk 0:00:18]} 18. fxe5 {[%clk 0:00:39]}  Rxe5 {[%clk 0:00:18]} 19. Bd4 {[%clk 0:00:40]}  Rf5 {[%clk 0:00:15]} 20. Bxf6 {[%clk 0:00:29]}  Qxf6 {[%clk 0:00:11]} 21. Qxd7 {[%clk 0:00:25]}  Rd8 {[%clk 0:00:05]} 22. Qxf5 {[%clk 0:00:24]} 1-0


[Site "https://www.chess.com"]

[Event "Titled Tuesday Blitz June 13 Late 2023"]
[White "marik_spb"]
[Black "Hajiyev, Kanan"]
[BlackFideId "13404148"]
[WhiteElo "2493"]
[BlackElo "2115"]
[Result "1-0"]
[Round "10"]
[TimeControl "180+2"]
[Date "2023.06.13"]
[WhiteClock "0:00:05"]
[BlackClock "0:00:11"]
[Board "50"]

1. d4 {[%clk 0:02:12]}  a6 {[%clk 0:03:00]} 2. c4 {[%clk 0:02:12]}  b5 {[%clk 0:03:01]} 3. e4 {[%clk 0:02:12]}  Bb7 {[%clk 0:02:57]} 4. f3 {[%clk 0:02:12]}  c5 {[%clk 0:02:20]} 5. cxb5 {[%clk 0:02:01]}  axb5 {[%clk 0:02:18]} 6. Bxb5 {[%clk 0:01:58]}  Qb6 {[%clk 0:02:13]} 7. Bc4 {[%clk 0:01:46]}  Qb4+ {[%clk 0:02:07]} 8. Nd2 {[%clk 0:01:43]}  cxd4 {[%clk 0:02:07]} 9. Qb3 {[%clk 0:01:39]}  Qxb3 {[%clk 0:01:57]} 10. Bxb3 {[%clk 0:01:28]}  Nc6 {[%clk 0:01:53]} 11. Ne2 {[%clk 0:01:27]}  e5 {[%clk 0:01:53]} 12. O-O {[%clk 0:01:26]}  Ba6 {[%clk 0:01:41]} 13. Bc4 {[%clk 0:01:24]}  Bc5 {[%clk 0:01:38]} 14. Kh1 {[%clk 0:01:12]}  Nf6 {[%clk 0:01:33]} 15. a3 {[%clk 0:01:10]}  Ke7 {[%clk 0:01:28]} 16. Rb1 {[%clk 0:01:01]}  Rhc8 {[%clk 0:01:17]} 17. Bxa6 {[%clk 0:00:59]}  Rxa6 {[%clk 0:01:13]} 18. b4 {[%clk 0:01:00]}  d3 {[%clk 0:00:59]} 19. Ng3 {[%clk 0:00:54]}  Bd4 {[%clk 0:00:22]} 20. b5 {[%clk 0:00:54]}  Rb6 {[%clk 0:00:22]} 21. bxc6 {[%clk 0:00:53]}  Rbxc6 {[%clk 0:00:22]} 22. Nf5+ {[%clk 0:00:52]}  Ke6 {[%clk 0:00:20]} 23. Nxg7+ {[%clk 0:00:46]}  Kd6 {[%clk 0:00:21]} 24. Nf5+ {[%clk 0:00:47]}  Ke6 {[%clk 0:00:20]} 25. Nxd4+ {[%clk 0:00:43]}  exd4 {[%clk 0:00:21]} 26. Nb3 {[%clk 0:00:41]}  Ke5 {[%clk 0:00:12]} 27. g3 {[%clk 0:00:16]}  d5 {[%clk 0:00:12]} 28. Bf4+ {[%clk 0:00:16]}  Ke6 {[%clk 0:00:11]} 29. Nxd4+ {[%clk 0:00:16]}  Kd7 {[%clk 0:00:09]} 30. Nxc6 {[%clk 0:00:16]}  Rxc6 {[%clk 0:00:09]} 31. exd5 {[%clk 0:00:16]}  Nxd5 {[%clk 0:00:09]} 32. Rbd1 {[%clk 0:00:16]}  Rc3 {[%clk 0:00:10]} 33. Be5 {[%clk 0:00:16]}  Rxa3 {[%clk 0:00:10]} 34. Rd2 {[%clk 0:00:14]}  Ne3 {[%clk 0:00:09]} 35. Re1 {[%clk 0:00:13]}  Nc4 {[%clk 0:00:10]} 36. Bb2 {[%clk 0:00:12]}  Ra2 {[%clk 0:00:09]} 37. Rxd3+ {[%clk 0:00:12]}  Kc6 {[%clk 0:00:08]} 38. Bf6 {[%clk 0:00:11]}  h5 {[%clk 0:00:07]} 39. Rc1 {[%clk 0:00:11]}  Kb5 {[%clk 0:00:07]} 40. Rb3+ {[%clk 0:00:11]}  Ka4 {[%clk 0:00:07]} 41. Rb8 {[%clk 0:00:10]}  Na5 {[%clk 0:00:02]} 42. Ra8 {[%clk 0:00:10]}  h4 {[%clk 0:00:03]} 43. Bc3 {[%clk 0:00:07]}  Kb5 {[%clk 0:00:03]} 44. Rxa5+ {[%clk 0:00:07]}  Rxa5 {[%clk 0:00:03]} 45. Bxa5 {[%clk 0:00:08]}  Kxa5 {[%clk 0:00:04]} 46. gxh4 {[%clk 0:00:08]}  Kb5 {[%clk 0:00:05]} 47. Re1 {[%clk 0:00:09]}  Kc5 {[%clk 0:00:05]} 48. h5 {[%clk 0:00:10]}  Kd6 {[%clk 0:00:05]} 49. h6 {[%clk 0:00:11]}  f5 {[%clk 0:00:06]} 50. h7 {[%clk 0:00:11]}  f4 {[%clk 0:00:07]} 51. h8=Q {[%clk 0:00:11]}  Kd5 {[%clk 0:00:08]} 52. Qe5+ {[%clk 0:00:11]}  Kc4 {[%clk 0:00:09]} 53. Rc1+ {[%clk 0:00:11]}  Kd3 {[%clk 0:00:10]} 54. Rc3+ {[%clk 0:00:09]}  Kd2 {[%clk 0:00:11]} 55. Qd4+ {[%clk 0:00:09]}  Ke2 {[%clk 0:00:10]} 56. Qd3+ {[%clk 0:00:09]}  Ke1 {[%clk 0:00:10]} 57. Qb1+ {[%clk 0:00:04]}  Kd2 {[%clk 0:00:11]} 58. Qb2+ {[%clk 0:00:05]}  Ke1 {[%clk 0:00:11]} 59. Rc1# {[%clk 0:00:05]} 1-0


[Site "https://www.chess.com"]

[Event "Titled Tuesday Blitz June 13 Late 2023"]
[White "Rottenwohrer Suarez, Juan"]
[Black "MaryanKyrychenko"]
[WhiteFideId "32068182"]
[WhiteElo "2174"]
[BlackElo "2578"]
[Result "1/2-1/2"]
[Round "10"]
[TimeControl "180+2"]
[Date "2023.06.13"]
[WhiteClock "0:00:06"]
[BlackClock "0:00:16"]
[Board "51"]

1. d4 {[%clk 0:03:00]}  Nf6 {[%clk 0:02:58]} 2. c4 {[%clk 0:03:01]}  e6 {[%clk 0:02:58]} 3. Nc3 {[%clk 0:03:01]}  Bb4 {[%clk 0:02:58]} 4. Nf3 {[%clk 0:03:00]}  O-O {[%clk 0:02:57]} 5. g3 {[%clk 0:02:53]}  b6 {[%clk 0:02:57]} 6. Bg2 {[%clk 0:02:53]}  Bb7 {[%clk 0:02:58]} 7. O-O {[%clk 0:02:53]}  Bxc3 {[%clk 0:02:58]} 8. bxc3 {[%clk 0:02:53]}  d6 {[%clk 0:02:58]} 9. a4 {[%clk 0:02:48]}  a5 {[%clk 0:02:58]} 10. c5 {[%clk 0:02:35]}  dxc5 {[%clk 0:02:49]} 11. dxc5 {[%clk 0:02:36]}  bxc5 {[%clk 0:02:49]} 12. Ba3 {[%clk 0:02:31]}  Nbd7 {[%clk 0:02:42]} 13. Qc2 {[%clk 0:02:06]}  Be4 {[%clk 0:02:32]} 14. Qd2 {[%clk 0:02:05]}  Re8 {[%clk 0:02:16]} 15. Qe3 {[%clk 0:02:04]}  c4 {[%clk 0:02:13]} 16. Rfd1 {[%clk 0:01:36]}  Qc8 {[%clk 0:02:12]} 17. Rd4 {[%clk 0:01:35]}  Bd5 {[%clk 0:02:08]} 18. Ne5 {[%clk 0:01:27]}  c5 {[%clk 0:02:03]} 19. Rh4 {[%clk 0:01:11]}  Qb7 {[%clk 0:01:39]} 20. Nxd7 {[%clk 0:01:10]}  Nxd7 {[%clk 0:01:30]} 21. f3 {[%clk 0:01:10]}  h6 {[%clk 0:01:23]} 22. Bxc5 {[%clk 0:01:07]}  Qb2 {[%clk 0:01:21]} 23. Rf1 {[%clk 0:00:50]}  Nxc5 {[%clk 0:01:20]} 24. Qxc5 {[%clk 0:00:51]}  Qxc3 {[%clk 0:01:21]} 25. e4 {[%clk 0:00:43]}  Rec8 {[%clk 0:01:18]} 26. Qd6 {[%clk 0:00:30]}  Bc6 {[%clk 0:01:14]} 27. Qf4 {[%clk 0:00:11]}  Bxa4 {[%clk 0:00:50]} 28. Rg4 {[%clk 0:00:07]}  h5 {[%clk 0:00:33]} 29. Rg5 {[%clk 0:00:06]}  g6 {[%clk 0:00:31]} 30. e5 {[%clk 0:00:04]}  Rd8 {[%clk 0:00:20]} 31. Qf6 {[%clk 0:00:04]}  Bc2 {[%clk 0:00:17]} 32. f4 {[%clk 0:00:04]}  Rac8 {[%clk 0:00:16]} 33. f5 {[%clk 0:00:04]}  Bxf5 {[%clk 0:00:15]} 34. Rfxf5 {[%clk 0:00:03]}  exf5 {[%clk 0:00:16]} 35. Rxg6+ {[%clk 0:00:03]}  fxg6 {[%clk 0:00:16]} 36. Qxg6+ {[%clk 0:00:04]}  Kf8 {[%clk 0:00:16]} 37. Qf6+ {[%clk 0:00:03]}  Ke8 {[%clk 0:00:15]} 38. Qe6+ {[%clk 0:00:04]}  Kf8 {[%clk 0:00:15]} 39. Qf6+ {[%clk 0:00:05]}  Kg8 {[%clk 0:00:15]} 40. Qg6+ {[%clk 0:00:05]}  Kh8 {[%clk 0:00:16]} 41. Qh6+ {[%clk 0:00:06]}  Kg8 {[%clk 0:00:16]} 42. Qg6+ {[%clk 0:00:06]} 1/2-1/2


[Site "https://www.chess.com"]

[Event "Titled Tuesday Blitz June 13 Late 2023"]
[White "Sadovsky, Artem"]
[Black "Ansh M Shah"]
[WhiteFideId "4155840"]
[BlackFideId "25033379"]
[WhiteElo "2314"]
[BlackElo "2084"]
[Result "0-1"]
[Round "10"]
[TimeControl "180+2"]
[Date "2023.06.13"]
[WhiteClock "0:00:00"]
[BlackClock "0:00:30"]
[Board "54"]

1. Nf3 {[%clk 0:03:00]}  c6 {[%clk 0:03:00]} 2. e3 {[%clk 0:03:00]}  d5 {[%clk 0:03:01]} 3. c4 {[%clk 0:03:00]}  e6 {[%clk 0:03:01]} 4. b3 {[%clk 0:03:00]}  Nf6 {[%clk 0:03:02]} 5. Bb2 {[%clk 0:02:57]}  g6 {[%clk 0:03:02]} 6. Be2 {[%clk 0:02:54]}  Bg7 {[%clk 0:02:58]} 7. O-O {[%clk 0:02:54]}  O-O {[%clk 0:02:59]} 8. d3 {[%clk 0:02:55]}  Nbd7 {[%clk 0:02:59]} 9. Nbd2 {[%clk 0:02:54]}  b6 {[%clk 0:02:59]} 10. Qc2 {[%clk 0:02:55]}  Bb7 {[%clk 0:03:00]} 11. e4 {[%clk 0:02:53]}  c5 {[%clk 0:02:55]} 12. Rae1 {[%clk 0:02:16]}  Nh5 {[%clk 0:02:35]} 13. Bxg7 {[%clk 0:02:13]}  Nxg7 {[%clk 0:02:36]} 14. d4 {[%clk 0:02:01]}  cxd4 {[%clk 0:02:33]} 15. exd5 {[%clk 0:01:49]}  exd5 {[%clk 0:02:07]} 16. Nxd4 {[%clk 0:01:48]}  Rc8 {[%clk 0:02:05]} 17. Bf3 {[%clk 0:01:45]}  Nc5 {[%clk 0:02:01]} 18. Nb5 {[%clk 0:01:41]}  a6 {[%clk 0:01:58]} 19. Nc3 {[%clk 0:01:21]}  dxc4 {[%clk 0:01:38]} 20. Bxb7 {[%clk 0:01:13]}  Nxb7 {[%clk 0:01:39]} 21. bxc4 {[%clk 0:01:01]}  Na5 {[%clk 0:01:35]} 22. Nce4 {[%clk 0:00:46]}  b5 {[%clk 0:01:23]} 23. c5 {[%clk 0:00:45]}  f5 {[%clk 0:01:16]} 24. Ng3 {[%clk 0:00:31]}  Qd4 {[%clk 0:01:09]} 25. Nb3 {[%clk 0:00:31]}  Nxb3 {[%clk 0:01:08]} 26. Qxb3+ {[%clk 0:00:32]}  Qc4 {[%clk 0:01:08]} 27. Qxc4+ {[%clk 0:00:30]}  bxc4 {[%clk 0:01:09]} 28. Re5 {[%clk 0:00:29]}  Rfe8 {[%clk 0:01:08]} 29. Rxe8+ {[%clk 0:00:28]}  Nxe8 {[%clk 0:01:09]} 30. Re1 {[%clk 0:00:26]}  Kf7 {[%clk 0:01:06]} 31. Ne2 {[%clk 0:00:22]}  Rxc5 {[%clk 0:01:06]} 32. Nc3 {[%clk 0:00:22]}  Nd6 {[%clk 0:01:03]} 33. Rd1 {[%clk 0:00:22]}  Nb5 {[%clk 0:01:02]} 34. Na4 {[%clk 0:00:18]}  Rc7 {[%clk 0:00:58]} 35. Kf1 {[%clk 0:00:13]}  Ke6 {[%clk 0:00:54]} 36. Ke2 {[%clk 0:00:13]}  Ke5 {[%clk 0:00:49]} 37. Nb6 {[%clk 0:00:09]}  Nd4+ {[%clk 0:00:46]} 38. Ke3 {[%clk 0:00:08]}  f4+ {[%clk 0:00:44]} 39. Kd2 {[%clk 0:00:09]}  c3+ {[%clk 0:00:45]} 40. Kd3 {[%clk 0:00:08]}  Nb5 {[%clk 0:00:37]} 41. Nc4+ {[%clk 0:00:07]}  Kf5 {[%clk 0:00:35]} 42. Rc1 {[%clk 0:00:06]}  Rd7+ {[%clk 0:00:30]} 43. Kc2 {[%clk 0:00:06]}  Rd4 {[%clk 0:00:27]} 44. Na5 {[%clk 0:00:04]}  Ra4 {[%clk 0:00:26]} 45. Nb3 {[%clk 0:00:03]}  Rxa2+ {[%clk 0:00:27]} 46. Kd3 {[%clk 0:00:03]}  Rxf2 {[%clk 0:00:27]} 47. Nd4+ {[%clk 0:00:02]}  Nxd4 {[%clk 0:00:27]} 48. Kxd4 {[%clk 0:00:03]}  c2 {[%clk 0:00:27]} 49. g4+ {[%clk 0:00:03]}  Kxg4 {[%clk 0:00:26]} 50. Ke4 {[%clk 0:00:03]}  Re2+ {[%clk 0:00:26]} 51. Kd3 {[%clk 0:00:03]}  Rxh2 {[%clk 0:00:27]} 52. Ke4 {[%clk 0:00:03]}  Re2+ {[%clk 0:00:26]} 53. Kd4 {[%clk 0:00:03]}  f3 {[%clk 0:00:27]} 54. Rxc2 {[%clk 0:00:04]}  Rxc2 {[%clk 0:00:26]} 55. Kd3 {[%clk 0:00:03]}  Re2 {[%clk 0:00:27]} 56. Kd4 {[%clk 0:00:03]}  Re8 {[%clk 0:00:28]} 57. Kd3 {[%clk 0:00:04]}  f2 {[%clk 0:00:28]} 58. Kd4 {[%clk 0:00:05]}  f1=Q {[%clk 0:00:29]} 59. Kc5 {[%clk 0:00:06]}  Qf5+ {[%clk 0:00:29]} 60. Kb6 {[%clk 0:00:07]}  Re6+ {[%clk 0:00:30]} 61. Ka7 {[%clk 0:00:00]}  Qf7+ {[%clk 0:00:30]} 0-1


[Site "https://www.chess.com"]

[Event "Titled Tuesday Blitz June 13 Late 2023"]
[White "ElDivis"]
[Black "Elaisaz"]
[WhiteElo "2550"]
[BlackElo "2313"]
[Result "1-0"]
[Round "10"]
[TimeControl "180+2"]
[Date "2023.06.13"]
[WhiteClock "0:00:30"]
[BlackClock "0:00:38"]
[Board "57"]

1. d4 {[%clk 0:03:00]}  Nf6 {[%clk 0:02:58]} 2. Nf3 {[%clk 0:03:00]}  g6 {[%clk 0:02:57]} 3. g3 {[%clk 0:02:58]}  Bg7 {[%clk 0:02:57]} 4. Bg2 {[%clk 0:02:59]}  O-O {[%clk 0:02:57]} 5. O-O {[%clk 0:02:59]}  d6 {[%clk 0:02:57]} 6. c4 {[%clk 0:02:59]}  Nc6 {[%clk 0:02:55]} 7. Nc3 {[%clk 0:02:55]}  e5 {[%clk 0:02:53]} 8. d5 {[%clk 0:02:46]}  Nb8 {[%clk 0:02:51]} 9. e4 {[%clk 0:02:40]}  a5 {[%clk 0:02:51]} 10. c5 {[%clk 0:02:40]}  dxc5 {[%clk 0:02:38]} 11. Be3 {[%clk 0:02:32]}  Nbd7 {[%clk 0:02:31]} 12. a4 {[%clk 0:02:27]}  b6 {[%clk 0:02:29]} 13. Nd2 {[%clk 0:02:24]}  Ba6 {[%clk 0:02:26]} 14. Nb5 {[%clk 0:02:24]}  Ng4 {[%clk 0:02:21]} 15. Qxg4 {[%clk 0:02:20]}  f5 {[%clk 0:02:15]} 16. exf5 {[%clk 0:01:41]}  gxf5 {[%clk 0:02:16]} 17. Qg5 {[%clk 0:01:36]}  Rf6 {[%clk 0:01:59]} 18. f4 {[%clk 0:01:28]}  e4 {[%clk 0:01:57]} 19. Nc4 {[%clk 0:01:23]}  Rg6 {[%clk 0:01:49]} 20. Qxd8+ {[%clk 0:01:22]}  Rxd8 {[%clk 0:01:47]} 21. Rac1 {[%clk 0:01:19]}  c6 {[%clk 0:01:39]} 22. dxc6 {[%clk 0:01:13]}  Rxc6 {[%clk 0:01:40]} 23. g4 {[%clk 0:01:08]}  Nf6 {[%clk 0:01:30]} 24. gxf5 {[%clk 0:01:07]}  Rd3 {[%clk 0:01:30]} 25. Ne5 {[%clk 0:01:00]}  Rc8 {[%clk 0:01:17]} 26. Nxd3 {[%clk 0:00:59]}  exd3 {[%clk 0:01:18]} 27. Rfd1 {[%clk 0:00:55]}  Ng4 {[%clk 0:01:13]} 28. Bf2 {[%clk 0:00:45]}  Bxb2 {[%clk 0:01:10]} 29. Rb1 {[%clk 0:00:43]}  Nxf2 {[%clk 0:01:04]} 30. Kxf2 {[%clk 0:00:42]}  Bxb5 {[%clk 0:01:05]} 31. Rxb2 {[%clk 0:00:37]}  Bxa4 {[%clk 0:01:05]} 32. Rxd3 {[%clk 0:00:37]}  b5 {[%clk 0:01:05]} 33. f6 {[%clk 0:00:34]}  Kf7 {[%clk 0:01:03]} 34. Rd6 {[%clk 0:00:32]}  c4 {[%clk 0:01:03]} 35. Bd5+ {[%clk 0:00:32]}  Kf8 {[%clk 0:00:38]} 36. Ke3 {[%clk 0:00:30]} 1-0


[Site "https://www.chess.com"]